Workbook

Sheet Foglio1
A5: Anno 2014 | B5: Durata in ore servizio | C5: N° professionisti | D5: Impegno orario/servizio | E5: N° Servizi erogabili | F5: Max Ore Erogabili | G5: % Servizi erogati | H5: Servizi erogati in ore | I5: Prezzo Orario Servizio | J5: Totale Ricavi
A6: Servizio Psicologico | B6: 24 | C6: 2 | D6: =+C6*B6 -> 48 | E6: 40 | F6: =+D6*E6 -> 1920 | G6: 50 | H6: =+F6*G6/100 -> 960 | I6: 60 | J6: =+I6*H6 -> 57600
A7: Servizio Educatore | B7: 24 | C7: 1 | D7: =+C7*B7 -> 24 | E7: 40 | F7: =D7*E7 -> 960 | G7: 35 | H7: =F7*G7/100 -> 336 | I7: 40 | J7: =I7*H7 -> 13440
A8: Servizio Medico | B8: 24 | C8: 1 | D8: =+C8*B8 -> 24 | E8: 40 | F8: =D8*E8 -> 960 | G8: 30 | H8: =F8*G8/100 -> 288 | I8: 60 | J8: =I8*H8 -> 17280
A9: Consulente famigliare | B9: 2 | C9: 1 | D9: 2 | E9: 40 | F9: 80 | G9: ? | H9: ? | I9: 50 | J9: ?
A10: Totale | E10: =SUM(E6:E9) -> 160 | F10: =SUM(F6:F8) -> 3840 | H10: =SUM(H6:H8) -> 1584 | I10: =SUM(I6:I9) -> 210 | J10: =SUM(J6:J8) -> 88320
A14: Anno 2015 | B14: Durata in ore servizio | C14: N° professionisti | D14: Impegno orario/servizio | E14: N° Servizi erogabili | F14: Max Ore Erogabili | G14: % Servizi erogati | H14: Servizi erogati in ore | I14: Prezzo Orario Servizio | J14: Totale Ricavi
A15: Servizio Psicologico | B15: 24 | C15: 2 | D15: =+C15*B15 -> 48 | E15: 40 | F15: =+D15*E15 -> 1920 | G15: 60 | H15: =+F15*G15/100 -> 1152 | I15: 60 | J15: =+I15*H15 -> 69120
A16: Servizio Educatore | B16: 24 | C16: 1 | D16: =+C16*B16 -> 24 | E16: 40 | F16: =D16*E16 -> 960 | G16: 40 | H16: =F16*G16/100 -> 384 | I16: 40 | J16: =I16*H16 -> 15360
A17: Servizio Medico | B17: 24 | C17: 1 | D17: =+C17*B17 -> 24 | E17: 40 | F17: =D17*E17 -> 960 | G17: 40 | H17: =F17*G17/100 -> 384 | I17: 60 | J17: =I17*H17 -> 23040
A18: Consulente famigliare | B18: 2 | C18: 1 | D18: 2 | E18: 40 | F18: 80 | G18: ? | H18: ? | I18: 50 | J18: ?
A19: Totale | E19: =SUM(E15:E18) -> 160 | F19: =SUM(F15:F17) -> 3840 | H19: =SUM(H15:H17) -> 1920 | I19: =SUM(I15:I18) -> 210 | J19: =SUM(J15:J17) -> 107520
A23: Anno 2016 | B23: Durata in ore servizio | C23: N° professionisti | D23: Impegno orario/servizio | E23: N° Servizi erogabili | F23: Max Ore Erogabili | G23: % Servizi erogati | H23: Servizi erogati in ore | I23: Prezzo Orario Servizio | J23: Totale Ricavi
A24: Servizio Psicologico | B24: 24 | C24: 2 | D24: =+C24*B24 -> 48 | E24: 40 | F24: =+D24*E24 -> 1920 | G24: 65 | H24: =+F24*G24/100 -> 1248 | I24: 60 | J24: =+I24*H24 -> 74880
A25: Servizio Educatore | B25: 24 | C25: 1 | D25: =+C25*B25 -> 24 | E25: 40 | F25: =D25*E25 -> 960 | G25: 45 | H25: =F25*G25/100 -> 432 | I25: 40 | J25: =I25*H25 -> 17280
A26: Servizio Medico | B26: 24 | C26: 1 | D26: =+C26*B26 -> 24 | E26: 40 | F26: =D26*E26 -> 960 | G26: 50 | H26: =F26*G26/100 -> 480 | I26: 60 | J26: =I26*H26 -> 28800
A27: Consulente famigliare | B27: 2 | C27: 1 | D27: 2 | E27: 40 | F27: 80 | G27: ? | H27: ? | I27: 50 | J27: ?
A28: Totale | E28: =SUM(E24:E27) -> 160 | F28: =SUM(F24:F26) -> 3840 | H28: =SUM(H24:H26) -> 2160 | I28: =SUM(I24:I27) -> 210 | J28: =SUM(J24:J26) -> 120960
